[Event "84th ESP-ch 2019"]
[Site "Marbella"]
[Date "2019.11.18"]
[Round "3.12"]
[White "Ramirez Diaz, Jose Ramon"]
[Black "Asis Gargatagli, Hipolito"]
[Result "1/2-1/2"]
[ECO "B90"]
[WhiteElo "2171"]
[BlackElo "2497"]
[Annotator "RC"]
[PlyCount "89"]
[EventDate "2019.11.16"]
[EventType "swiss"]
[EventCountry "ESP"]
[SourceTitle "playchess.com"]
[Source "ChessBase"]
[SourceQuality "1"]
[TimeControl "5400+30"]

1. e4 {[%emt 0:00:00]} c5 {[%emt 0:00:00]} 2. Nf3 {[%emt 0:00:00]} d6 {[%emt 0:00:00]} 3. d4 {[%emt 0:00:04]} cxd4 {[%emt 0:00:09]} 4. Nxd4 {[%emt 0:00:06]} Nf6 {[%emt 0:00:05]} 5. Nc3 {[%emt 0:00:08]} a6 {[%emt 0:00:10]} 6. Qe2 {[%emt 0:00:10]} Nbd7 {[%emt 0:01:39]} 7. g4 {[%emt 0:01:43]} g6 {[%emt 0:00:55]} 8. Bg2 {[%emt 0:05:07]} Bg7 {[%emt 0:01:29]} 9. Be3 {[%emt 0:00:50]} h5 {[%emt 0:09:10]} 10. gxh5 {[%emt 0:07:41]} Rxh5 {[%emt 0:01:40]} 11. O-O-O {[%emt 0:10:50]} Qc7 {[%emt 0:07:01]} 12. f4 {[%emt 0:05:33]} e5 {[%emt 0:24:28]} 13. Ndb5 {[%emt 0:15:03]} axb5 {[%emt 0:00:18]} 14. Nxb5 {[%emt 0:00:35]} Qa5 {[%emt 0:00:35]} 15. Nxd6+ {[%emt 0:00:12]} Kf8 {[%emt 0:00:07]} 16. Qc4 {[%emt 0:00:10]} Qxa2 {[%emt 0:00:04]} 17. Qxa2 {[%emt 0:01:30]} Rxa2 {[%emt 0:00:05]} 18. Nxc8 {[%emt 0:00:06]} exf4 {[%emt 0:01:26]} 19. Bxf4 {[%emt 0:01:20]} Rb5 {[%emt 0:00:44]} 20. e5 {[%emt 0:29:23]} Rbxb2 {[%emt 0:16:33]} 21. Rd2 {[%emt 0:00:12]} Ng4 {[%emt 0:16:02]} 22. Bd5 {[%emt 0:01:45]} Ngxe5 {[%emt 0:00:27]} 23. Bxa2 {[%emt 0:05:28]} Rxa2 {[%emt 0:00:04]} 24. Kb1 {[%emt 0:00:05]} Ra8 {[%emt 0:02:15]} 25. Bxe5 {[%emt 0:05:35]} Bxe5 {[%emt 0:00:05]} 26. c3 {[%emt 0:00:04]} Nf6 {[%emt 0:13:43]} 27. Nb6 {[%emt 0:01:55]} Bxc3 {[%emt 0:00:06]} 28. Nxa8 {[%emt 0:03:09]} Bxd2 {[%emt 0:00:04]} 29. Kc2 {[%emt 0:00:06]} Bf4 {[%emt 0:00:13]} 30. h3 {[%emt 0:00:35]} Ne4 {[%emt 0:01:23]} 31. Rf1 {[%emt 0:00:43]} Bd6 {[%emt 0:01:03]} 32. Nb6 {[%emt 0:00:44]} Kg7 {[%emt 0:00:32]} 33. Nd5 {[%emt 0:02:58]} Ng5 {[%emt 0:01:09]} 34. Rh1 {[%emt 0:01:51]} Be5 {[%emt 0:02:18]} 35. Kd3 {[%emt 0:00:10]} f5 {[%emt 0:00:13]} 36. Ke3 {[%emt 0:00:45]} Kh6 {[%emt 0:00:11]} 37. Nf4 {[%emt 0:00:36]} b5 {[%emt 0:00:57]} 38. h4 {[%emt 0:00:28]} Ne4 {[%emt 0:00:18]} 39. Rg1 {[%emt 0:00:08]} Bxf4+ {[%emt 0:00:17]} 40. Kxf4 {[%emt 0:00:09]} Nf2 {[%emt 0:00:26]} 41. Rb1 {[%emt 0:00:25]} b4 {[%emt 0:01:02]} 42. Kg3 {[%emt 0:00:07]} Ne4+ {[%emt 0:00:09]} 43. Kh3 {[%emt 0:00:16]} Nf2+ {[%emt 0:00:08]} 44. Kg3 {[%emt 0:00:19]} Ne4+ {[%emt 0:00:16]} 45. Kh3 {[%emt 0:00:26]} 1/2-1/2

[Event "84th ESP-ch 2019"]
[Site "Marbella"]
[Date "2019.11.18"]
[Round "3.27"]
[White "Garcia De Blas, Esteban"]
[Black "Guerra Rivera, Salvador"]
[Result "0-1"]
[ECO "C41"]
[WhiteElo "2031"]
[BlackElo "2334"]
[Annotator "ChessBase"]
[PlyCount "118"]
[EventDate "2019.11.16"]
[EventType "swiss"]
[EventCountry "ESP"]
[SourceTitle "playchess.com"]
[Source "ChessBase"]
[SourceQuality "1"]
[TimeControl "5400+30"]

1. e4 {[%emt 0:00:29]} e5 {[%emt 0:00:07]} 2. Nf3 {[%emt 0:00:33]} d6 {[%emt 0:00:41]} 3. d4 {[%emt 0:00:38]} exd4 {[%emt 0:00:07]} 4. Nxd4 {[%emt 0:00:44]} Nf6 {[%emt 0:00:06]} 5. Nc3 {[%emt 0:00:09]} Be7 {[%emt 0:00:09]} 6. Be2 {[%emt 0:05:05]} O-O {[%emt 0:00:27]} 7. Be3 {[%emt 0:02:49]} Re8 {[%emt 0:01:43]} 8. Qd2 {[%emt 0:01:27]} Bf8 {[%emt 0:01:17]} 9. Bg5 {[%emt 0:03:55]} h6 {[%emt 0:13:12]} 10. Bxf6 {[%emt 0:00:20]} Qxf6 {[%emt 0:00:09]} 11. O-O {[%emt 0:02:16]} c6 {[%emt 0:04:37]} 12. a4 {[%emt 0:02:57]} a5 {[%emt 0:02:09]} 13. Kh1 {[%emt 0:08:56]} Nd7 {[%emt 0:08:35]} 14. Nb3 {[%emt 0:02:54]} Qh4 {[%emt 0:09:31]} 15. g3 {[%emt 0:05:46]} Qd8 {[%emt 0:07:20]} 16. f4 {[%emt 0:01:31]} Nf6 {[%emt 0:01:39]} 17. Bf3 {[%emt 0:00:20]} Qb6 {[%emt 0:01:13]} 18. Qf2 {[%emt 0:03:38]} Qc7 {[%emt 0:02:44]} 19. Rfe1 {[%emt 0:03:34]} g6 {[%emt 0:07:00]} 20. Qd4 {[%emt 0:15:27]} Bg7 {[%emt 0:03:26]} 21. Rad1 {[%emt 0:11:59]} Ng4 {[%emt 0:11:01]} 22. Qd2 {[%emt 0:05:10]} Qb6 {[%emt 0:00:53]} 23. Re2 {[%emt 0:00:59]} h5 {[%emt 0:02:34]} 24. h3 {[%emt 0:03:09]} Nh6 {[%emt 0:00:48]} 25. Kg2 {[%emt 0:02:50]} Be6 {[%emt 0:00:17]} 26. Nd4 {[%emt 0:05:20]} Bd7 {[%emt 0:03:03]} 27. Nb3 {[%emt 0:00:31]} Rad8 {[%emt 0:00:37]} 28. Rb1 {[%emt 0:04:26]} Be6 {[%emt 0:02:02]} 29. Nc1 {[%emt 0:01:08]} Qc7 {[%emt 0:02:41]} 30. Nd3 {[%emt 0:00:42]} Qc8 {[%emt 0:00:21]} 31. Rh1 {[%emt 0:00:22]} f5 {[%emt 0:00:41]} 32. Qe1 {[%emt 0:01:18]} d5 {[%emt 0:06:12]} 33. e5 {[%emt 0:00:30]} d4 {[%emt 0:01:23]} 34. Nb1 {[%emt 0:00:26]} b6 {[%emt 0:00:11]} 35. Nd2 {[%emt 0:00:22]} Kf7 {[%emt 0:00:29]} 36. b3 {[%emt 0:00:17]} Bf8 {[%emt 0:01:23]} 37. Qa1 {[%emt 0:00:30]} Qc7 {[%emt 0:00:58]} 38. Nb2 {[%emt 0:00:22]} Kg7 {[%emt 0:00:25]} 39. Rd1 {[%emt 0:00:11]} Nf7 {[%emt 0:02:20]} 40. Ndc4 {[%emt 0:00:49]} Bb4 {[%emt 0:00:39]} 41. Na3 {[%emt 0:01:32]} Bc3 {[%emt 0:01:19]} 42. Nb1 {[%emt 0:00:17]} Bb4 {[%emt 0:00:11]} 43. Nd3 {[%emt 0:00:10]} Be7 {[%emt 0:00:10]} 44. Nf2 {[%emt 0:00:07]} c5 {[%emt 0:02:04]} 45. Na3 {[%emt 0:00:05]} h4 {[%emt 0:00:08]} 46. g4 {[%emt 0:00:26]} g5 {[%emt 0:00:12]} 47. Nb5 {[%emt 0:01:16]} Qd7 {[%emt 0:00:17]} 48. Kh2 {[%emt 0:00:48]} gxf4 {[%emt 0:00:22]} 49. gxf5 {[%emt 0:00:24]} Bxf5 {[%emt 0:00:05]} 50. Qc1 {[%emt 0:00:09]} Bg5 {[%emt 0:00:57]} 51. Rg1 {[%emt 0:00:12]} Kh7 {[%emt 0:00:58]} 52. Nd3 Bh6 {[%emt 0:00:18]} 53. Qe1 {[%emt 0:02:01]} Ng5 {[%emt 0:00:21]} 54. Bh1 {[%emt 0:00:57]} f3 {[%emt 0:00:32]} 55. Rf2 {[%emt 0:01:20]} Bxd3 {[%emt 0:00:05]} 56. Rxg5 {[%emt 0:00:29]} Bxg5 {[%emt 0:00:09]} 57. cxd3 {[%emt 0:00:19]} Bf4+ {[%emt 0:00:03]} 58. Kg1 {[%emt 0:00:05]} Rg8+ {[%emt 0:00:10]} 59. Kf1 {[%emt 0:00:06]} Qxh3+ {[%emt 0:00:06]} 0-1

[Event "84th ESP-ch 2019"]
[Site "Marbella"]
[Date "2019.11.18"]
[Round "3.30"]
[White "Ruiz Bellon, Manuel"]
[Black "Zurano Lopez, Pedro"]
[Result "0-1"]
[ECO "B12"]
[WhiteElo "1994"]
[BlackElo "2292"]
[Annotator "RC"]
[PlyCount "72"]
[EventDate "2019.11.16"]
[EventType "swiss"]
[EventCountry "ESP"]
[SourceTitle "playchess.com"]
[Source "ChessBase"]
[SourceQuality "1"]
[TimeControl "5400+30"]

1. e4 {[%emt 0:00:00]} c6 {[%emt 0:00:14]} 2. d4 {[%emt 0:00:09]} d5 {[%emt 0:00:05]} 3. Nd2 {[%emt 0:00:06]} g6 {[%emt 0:00:39]} 4. Ngf3 {[%emt 0:02:12]} Bg7 {[%emt 0:01:50]} 5. c3 {[%emt 0:00:38]} dxe4 {[%emt 0:00:31]} 6. Nxe4 {[%emt 0:00:18]} Nd7 {[%emt 0:00:04]} 7. Bc4 {[%emt 0:05:28]} Ngf6 {[%emt 0:01:17]} 8. Bxf7+ {[%emt 0:22:30]} Kxf7 {[%emt 0:00:27]} 9. Neg5+ {[%emt 0:00:09]} Kg8 {[%emt 0:00:31]} 10. Ne6 {[%emt 0:01:13]} Qa5 {[%emt 0:04:58]} 11. Qe2 {[%emt 0:02:12]} Nd5 {[%emt 0:16:27]} 12. Nxg7 {[%emt 0:11:52]} Kxg7 {[%emt 0:00:34]} 13. O-O {[%emt 0:00:36]} b5 {[%emt 0:07:32]} 14. Bd2 {[%emt 0:09:10]} Qc7 {[%emt 0:04:44]} 15. b3 {[%emt 0:00:28]} Re8 {[%emt 0:08:28]} 16. Rfe1 {[%emt 0:02:35]} Nf8 {[%emt 0:08:28]} 17. Ne5 {[%emt 0:02:12]} Be6 {[%emt 0:01:29]} 18. c4 {[%emt 0:01:05]} bxc4 {[%emt 0:00:18]} 19. bxc4 {[%emt 0:00:09]} Nf6 {[%emt 0:00:44]} 20. h3 {[%emt 0:06:30]} Rad8 {[%emt 0:02:54]} 21. Bc3 {[%emt 0:03:04]} Kg8 {[%emt 0:05:11]} 22. Qf3 {[%emt 0:01:06]} Rc8 {[%emt 0:00:12]} 23. Rac1 {[%emt 0:04:11]} N6d7 {[%emt 0:10:51]} 24. Nxc6 {[%emt 0:07:00]} Qxc6 {[%emt 0:00:26]} 25. d5 {[%emt 0:00:02]} Qa8 {[%emt 0:00:44]} 26. Qe3 {[%emt 0:02:07]} Bf7 {[%emt 0:04:00]} 27. Qh6 {[%emt 0:00:34]} Nf6 {[%emt 0:01:27]} 28. Bb2 {[%emt 0:08:50]} N8d7 {[%emt 0:02:39]} 29. g4 {[%emt 0:00:32]} Bxd5 {[%emt 0:02:49]} 30. cxd5 {[%emt 0:01:04]} Rxc1 {[%emt 0:00:38]} 31. Rxc1 {[%emt 0:00:06]} Qxd5 {[%emt 0:00:50]} 32. Re1 {[%emt 0:04:16]} Qxa2 {[%emt 0:01:03]} 33. Re2 {[%emt 0:00:11]} Qf7 {[%emt 0:04:17]} 34. Re3 {[%emt 0:01:24]} Rb8 {[%emt 0:01:12]} 35. Ba3 {[%emt 0:01:27]} Rb1+ {[%emt 0:00:57]} 36. Kh2 {[%emt 0:00:07]} Nd5 {[%emt 0:00:27]} 0-1

[Event "84th ESP-ch 2019"]
[Site "Marbella"]
[Date "2019.11.18"]
[Round "3.31"]
[White "Medarde Santiago, Luis Marcos"]
[Black "Sosa Suarez, Carla Cristina"]
[Result "0-1"]
[ECO "C15"]
[WhiteElo "2285"]
[BlackElo "2022"]
[Annotator "RC"]
[PlyCount "132"]
[EventDate "2019.11.16"]
[EventType "swiss"]
[EventCountry "ESP"]
[SourceTitle "playchess.com"]
[Source "ChessBase"]
[SourceQuality "1"]
[TimeControl "5400+30"]

1. e4 {[%emt 0:03:56]} e6 {[%emt 0:00:00]} 2. d4 {[%emt 0:00:06]} d5 {[%emt 0:00:00]} 3. Nc3 {[%emt 0:00:44]} Bb4 {[%emt 0:00:10]} 4. Nge2 {[%emt 0:04:03]} dxe4 {[%emt 0:00:51]} 5. a3 {[%emt 0:00:40]} Bxc3+ {[%emt 0:01:03]} 6. Nxc3 {[%emt 0:00:09]} Nc6 {[%emt 0:00:47]} 7. d5 {[%emt 0:12:30]} exd5 {[%emt 0:00:17]} 8. Qxd5 {[%emt 0:00:54]} Be6 {[%emt 0:05:13]} 9. Qxd8+ {[%emt 0:09:12]} Rxd8 {[%emt 0:00:07]} 10. Bg5 {[%emt 0:03:08]} f6 {[%emt 0:10:25]} 11. Bf4 {[%emt 0:00:14]} g5 {[%emt 0:14:42]} 12. Bxc7 {[%emt 0:08:14]} Rd7 {[%emt 0:00:05]} 13. Bg3 {[%emt 0:00:20]} f5 {[%emt 0:01:42]} 14. h4 {[%emt 0:04:50]} f4 {[%emt 0:01:40]} 15. Bh2 {[%emt 0:01:46]} h6 {[%emt 0:11:18]} 16. Nxe4 {[%emt 0:04:01]} Bf5 {[%emt 0:00:48]} 17. f3 {[%emt 0:13:12]} Bxe4 {[%emt 0:13:34]} 18. fxe4 {[%emt 0:00:08]} Nf6 {[%emt 0:00:11]} 19. Bd3 {[%emt 0:00:37]} Nxe4 {[%emt 0:03:49]} 20. O-O-O {[%emt 0:04:03]} Nf6 {[%emt 0:07:39]} 21. Bg1 {[%emt 0:02:24]} O-O {[%emt 0:04:58]} 22. Bc5 {[%emt 0:01:04]} Rfd8 {[%emt 0:01:50]} 23. hxg5 {[%emt 0:04:47]} hxg5 {[%emt 0:00:07]} 24. Rde1 {[%emt 0:00:03]} Kg7 {[%emt 0:01:53]} 25. b4 {[%emt 0:05:49]} b6 {[%emt 0:01:11]} 26. Bg1 {[%emt 0:02:04]} Re7 {[%emt 0:01:25]} 27. Bf2 {[%emt 0:01:21]} Ne5 {[%emt 0:05:44]} 28. Bf5 {[%emt 0:00:31]} Kf7 {[%emt 0:01:10]} 29. Re2 {[%emt 0:02:43]} Nc6 {[%emt 0:04:41]} 30. Rhe1 {[%emt 0:01:31]} Rxe2 {[%emt 0:00:05]} 31. Rxe2 {[%emt 0:00:01]} Rd6 {[%emt 0:03:05]} 32. Kb2 {[%emt 0:00:49]} Nd4 {[%emt 0:00:24]} 33. Bxd4 {[%emt 0:01:24]} Rxd4 {[%emt 0:00:01]} 34. c4 {[%emt 0:01:09]} Nh5 {[%emt 0:02:09]} 35. Kc3 {[%emt 0:04:34]} Rd8 {[%emt 0:01:23]} 36. Be6+ {[%emt 0:00:30]} Kf6 {[%emt 0:00:08]} 37. c5 {[%emt 0:01:09]} Ng3 {[%emt 0:00:39]} 38. Re1 {[%emt 0:01:35]} Re8 {[%emt 0:00:12]} 39. cxb6 {[%emt 0:02:42]} axb6 {[%emt 0:00:04]} 40. a4 {[%emt 0:00:26]} Rxe6 {[%emt 0:00:18]} 41. Ra1 {[%emt 0:00:26]} g4 {[%emt 0:01:48]} 42. a5 {[%emt 0:00:01]} bxa5 43. bxa5 {[%emt 0:00:01]} f3 {[%emt 0:00:40]} 44. gxf3 {[%emt 0:00:13]} gxf3 {[%emt 0:00:06]} 45. a6 {[%emt 0:00:27]} Re8 {[%emt 0:02:17]} 46. a7 {[%emt 0:01:42]} Ra8 {[%emt 0:00:26]} 47. Ra2 {[%emt 0:00:22]} Ne4+ {[%emt 0:01:02]} 48. Kd4 {[%emt 0:00:25]} f2 {[%emt 0:00:36]} 49. Ra6+ {[%emt 0:00:48]} Kf5 {[%emt 0:00:16]} 50. Ra5+ {[%emt 0:00:37]} Kf4 {[%emt 0:00:31]} 51. Ra1 {[%emt 0:00:32]} Kf3 {[%emt 0:00:37]} 52. Kd5 {[%emt 0:00:28]} Kg2 {[%emt 0:00:42]} 53. Kc6 {[%emt 0:00:31]} Rxa7 {[%emt 0:00:15]} 54. Rxa7 {[%emt 0:00:17]} f1=Q {[%emt 0:00:06]} 55. Rg7+ {[%emt 0:00:12]} Ng3 {[%emt 0:00:17]} 56. Rb7 {[%emt 0:00:54]} Qc4+ {[%emt 0:00:18]} 57. Kb6 {[%emt 0:00:23]} Ne4 {[%emt 0:00:31]} 58. Ka7 {[%emt 0:00:36]} Nd6 {[%emt 0:00:23]} 59. Rg7+ {[%emt 0:00:36]} Kf2 {[%emt 0:00:08]} 60. Kb8 {[%emt 0:00:34]} Qb4+ {[%emt 0:01:27]} 61. Ka8 {[%emt 0:00:29]} Ke3 {[%emt 0:00:53]} 62. Rg3+ {[%emt 0:00:22]} Kf4 {[%emt 0:00:17]} 63. Rg7 {[%emt 0:00:11]} Kf5 {[%emt 0:00:10]} 64. Rh7 {[%emt 0:00:52]} Kg6 {[%emt 0:00:35]} 65. Re7 {[%emt 0:00:27]} Qa5+ {[%emt 0:00:16]} 66. Kb8 {[%emt 0:00:21]} Qd8+ {[%emt 0:00:13]} 0-1

[Event "84th ESP-ch 2019"]
[Site "Marbella"]
[Date "2019.11.18"]
[Round "3.33"]
[White "Jimenez Ruano, Adrian"]
[Black "Sanjuan Garcia, Miguel"]
[Result "1-0"]
[ECO "A57"]
[WhiteElo "2269"]
[BlackElo "2021"]
[Annotator "RC"]
[PlyCount "63"]
[EventDate "2019.11.16"]
[EventType "swiss"]
[EventCountry "ESP"]
[SourceTitle "playchess.com"]
[Source "ChessBase"]
[SourceQuality "1"]
[TimeControl "5400+30"]

1. d4 {[%emt 0:00:00]} Nf6 {[%emt 0:00:00]} 2. c4 {[%emt 0:00:00]} c5 {[%emt 0:00:00]} 3. d5 {[%emt 0:00:08]} b5 {[%emt 0:00:00]} 4. cxb5 {[%emt 0:00:09]} a6 {[%emt 0:00:00]} 5. e3 {[%emt 0:00:12]} g6 {[%emt 0:00:03]} 6. Nc3 {[%emt 0:00:12]} Bg7 {[%emt 0:00:06]} 7. Nf3 {[%emt 0:00:11]} O-O {[%emt 0:00:14]} 8. a4 {[%emt 0:00:30]} Bb7 {[%emt 0:00:31]} 9. Be2 {[%emt 0:01:56]} e6 {[%emt 0:02:31]} 10. e4 {[%emt 0:00:25]} exd5 {[%emt 0:03:53]} 11. exd5 {[%emt 0:00:46]} axb5 {[%emt 0:00:16]} 12. Bxb5 {[%emt 0:00:09]} Re8+ {[%emt 0:00:10]} 13. Be3 {[%emt 0:00:12]} Ng4 {[%emt 0:02:52]} 14. O-O {[%emt 0:00:06]} Rxe3 {[%emt 0:03:06]} 15. fxe3 {[%emt 0:00:05]} Nxe3 {[%emt 0:00:06]} 16. Qd2 {[%emt 0:00:21]} Nxf1 {[%emt 0:00:05]} 17. Rxf1 {[%emt 0:00:16]} h6 {[%emt 0:10:01]} 18. Kh1 {[%emt 0:42:18]} d6 {[%emt 0:02:15]} 19. Qf4 {[%emt 0:04:19]} Na6 {[%emt 0:39:06]} 20. Ng5 {[%emt 0:11:26]} Qf6 {[%emt 0:07:29]} 21. Qxf6 {[%emt 0:02:17]} Bxf6 {[%emt 0:00:20]} 22. Rxf6 {[%emt 0:01:32]} hxg5 {[%emt 0:00:01]} 23. Rxd6 {[%emt 0:00:19]} Nb4 {[%emt 0:01:46]} 24. h3 {[%emt 0:07:15]} Kf8 {[%emt 0:00:20]} 25. Rd7 {[%emt 0:01:25]} Bc8 {[%emt 0:02:47]} 26. Rc7 {[%emt 0:01:18]} Na6 {[%emt 0:02:06]} 27. Rxc8+ {[%emt 0:02:16]} Rxc8 {[%emt 0:00:01]} 28. Bxa6 {[%emt 0:00:10]} Rb8 {[%emt 0:00:25]} 29. Bb5 {[%emt 0:00:47]} Ke7 {[%emt 0:00:14]} 30. a5 {[%emt 0:04:00]} Kd6 {[%emt 0:00:48]} 31. a6 {[%emt 0:00:04]} Kc7 {[%emt 0:00:31]} 32. a7 {[%emt 0:00:14]} 1-0

[Event "84th ESP-ch 2019"]
[Site "Marbella"]
[Date "2019.11.18"]
[Round "3.39"]
[White "Martinez Piqueras, Carlos"]
[Black "Diaz Mino, Daniel"]
[Result "1-0"]
[ECO "C45"]
[WhiteElo "2206"]
[BlackElo "1953"]
[Annotator "RC"]
[PlyCount "127"]
[EventDate "2019.11.16"]
[EventType "swiss"]
[EventCountry "ESP"]
[SourceTitle "playchess.com"]
[Source "ChessBase"]
[SourceQuality "1"]
[TimeControl "5400+30"]

1. e4 {[%emt 0:00:48]} e5 {[%emt 0:00:00]} 2. Nf3 {[%emt 0:00:24]} Nc6 {[%emt 0:00:00]} 3. d4 {[%emt 0:01:06]} exd4 {[%emt 0:00:24]} 4. Nxd4 {[%emt 0:00:28]} Bc5 {[%emt 0:00:39]} 5. Nb3 {[%emt 0:00:09]} Bb6 {[%emt 0:00:52]} 6. Nc3 {[%emt 0:00:08]} Nf6 {[%emt 0:01:03]} 7. Qe2 {[%emt 0:00:19]} O-O {[%emt 0:00:46]} 8. Be3 {[%emt 0:00:50]} Bxe3 {[%emt 0:07:01]} 9. Qxe3 {[%emt 0:00:11]} d6 {[%emt 0:02:25]} 10. O-O-O {[%emt 0:01:51]} a6 {[%emt 0:16:57]} 11. f3 {[%emt 0:01:50]} b5 {[%emt 0:02:00]} 12. h4 {[%emt 0:15:35]} b4 {[%emt 0:04:08]} 13. Nd5 {[%emt 0:09:24]} a5 {[%emt 0:15:01]} 14. Nd4 {[%emt 0:05:01]} Ne5 {[%emt 0:13:41]} 15. Qg5 {[%emt 0:10:32]} Nxd5 {[%emt 0:04:21]} 16. exd5 {[%emt 0:01:11]} Bd7 {[%emt 0:02:04]} 17. Qxd8 {[%emt 0:10:05]} Rfxd8 {[%emt 0:00:25]} 18. Bb5 {[%emt 0:00:20]} Bxb5 {[%emt 0:02:13]} 19. Nxb5 {[%emt 0:01:15]} Rdb8 {[%emt 0:00:08]} 20. Nd4 {[%emt 0:01:31]} a4 {[%emt 0:00:27]} 21. Rhe1 {[%emt 0:16:14]} Kf8 {[%emt 0:06:18]} 22. f4 {[%emt 0:01:36]} Nd7 {[%emt 0:01:19]} 23. Nc6 {[%emt 0:01:52]} Rb6 {[%emt 0:00:41]} 24. Rd4 {[%emt 0:02:33]} b3 {[%emt 0:01:22]} 25. cxb3 {[%emt 0:03:22]} axb3 {[%emt 0:00:24]} 26. a3 {[%emt 0:00:52]} Nf6 {[%emt 0:04:02]} 27. Nb4 {[%emt 0:00:42]} Rb5 {[%emt 0:02:57]} 28. Re3 {[%emt 0:03:40]} Re8 {[%emt 0:02:49]} 29. Rxb3 {[%emt 0:04:21]} Re2 {[%emt 0:00:48]} 30. g3 {[%emt 0:01:37]} Rg2 {[%emt 0:04:25]} 31. Rbd3 {[%emt 0:02:12]} Nh5 {[%emt 0:01:11]} 32. Rc4 {[%emt 0:00:43]} Rb7 {[%emt 0:01:18]} 33. Rcc3 {[%emt 0:00:11]} g6 {[%emt 0:02:22]} 34. Kb1 {[%emt 0:02:07]} f5 {[%emt 0:00:48]} 35. Ka2 {[%emt 0:00:12]} Nf6 {[%emt 0:00:46]} 36. Rc2 {[%emt 0:00:42]} Rg1 {[%emt 0:00:30]} 37. Rdc3 {[%emt 0:00:56]} Ne4 {[%emt 0:01:17]} 38. Rxc7 {[%emt 0:00:08]} Rxc7 {[%emt 0:00:06]} 39. Rxc7 {[%emt 0:00:04]} Rxg3 {[%emt 0:00:20]} 40. a4 {[%emt 0:00:41]} Nc5 {[%emt 0:00:33]} 41. a5 {[%emt 0:00:31]} Rb3 {[%emt 0:01:07]} 42. Rxc5 {[%emt 0:01:35]} Rxb4 {[%emt 0:00:09]} 43. Rc8+ {[%emt 0:00:28]} Ke7 {[%emt 0:00:15]} 44. Ka3 {[%emt 0:00:26]} Rb5 {[%emt 0:00:36]} 45. b4 {[%emt 0:00:28]} Kd7 {[%emt 0:00:40]} 46. Rh8 {[%emt 0:00:20]} Kc7 {[%emt 0:00:37]} 47. Rxh7+ {[%emt 0:00:18]} Kb8 {[%emt 0:00:15]} 48. Rg7 {[%emt 0:00:25]} Rxd5 49. Rxg6 {[%emt 0:00:14]} Rd4 {[%emt 0:00:58]} 50. h5 {[%emt 0:00:09]} Rxf4 {[%emt 0:00:23]} 51. Rxd6 {[%emt 0:00:23]} Rh4 {[%emt 0:00:14]} 52. h6 {[%emt 0:00:07]} f4 {[%emt 0:00:20]} 53. Rf6 {[%emt 0:01:45]} Rh3+ {[%emt 0:00:42]} 54. Ka4 {[%emt 0:00:06]} f3 {[%emt 0:00:33]} 55. a6 {[%emt 0:01:13]} Ka8 {[%emt 0:01:17]} 56. b5 {[%emt 0:00:23]} Ka7 {[%emt 0:00:31]} 57. Rf7+ {[%emt 0:00:36]} Kb6 {[%emt 0:00:31]} 58. a7 {[%emt 0:00:22]} Rh1 {[%emt 0:00:28]} 59. h7 {[%emt 0:00:58]} f2 {[%emt 0:00:30]} 60. Kb3 {[%emt 0:00:21]} Rxh7 {[%emt 0:00:32]} 61. a8=Q {[%emt 0:00:40]} Rxf7 {[%emt 0:00:13]} 62. Qa6+ {[%emt 0:00:18]} Kc5 {[%emt 0:00:29]} 63. Qc6+ {[%emt 0:00:04]} Kd4 {[%emt 0:00:11]} 64. Qc4+ 1-0

[Event "84th ESP-ch 2019"]
[Site "Marbella"]
[Date "2019.11.18"]
[Round "3.42"]
[White "Serrano Garcia, Luis"]
[Black "Garcia Vicente, Nieves"]
[Result "0-1"]
[ECO "B32"]
[WhiteElo "1866"]
[BlackElo "2175"]
[Annotator "RC"]
[PlyCount "42"]
[EventDate "2019.11.16"]
[EventType "swiss"]
[EventCountry "ESP"]
[SourceTitle "playchess.com"]
[Source "ChessBase"]
[SourceQuality "1"]
[TimeControl "5400+30"]

1. e4 {[%emt 0:00:00]} c5 {[%emt 0:00:00]} 2. Nf3 {[%emt 0:00:00]} Nc6 {[%emt 0:00:16]} 3. d4 {[%emt 0:01:17]} cxd4 {[%emt 0:00:45]} 4. Nxd4 {[%emt 0:00:12]} e5 {[%emt 0:00:27]} 5. Nb5 {[%emt 0:08:18]} a6 {[%emt 0:01:09]} 6. Nd6+ {[%emt 0:00:44]} Bxd6 {[%emt 0:00:05]} 7. Qxd6 {[%emt 0:00:11]} Qf6 {[%emt 0:00:18]} 8. Qd1 {[%emt 0:02:37]} Qg6 {[%emt 0:00:47]} 9. Nc3 {[%emt 0:07:02]} Nge7 {[%emt 0:00:20]} 10. Be3 {[%emt 0:11:06]} d5 {[%emt 0:03:20]} 11. Bc5 {[%emt 0:13:13]} d4 {[%emt 0:07:01]} 12. Ne2 {[%emt 0:02:42]} Qxe4 {[%emt 0:01:05]} 13. Bxe7 {[%emt 0:01:33]} Nxe7 {[%emt 0:00:50]} 14. f3 {[%emt 0:11:09]} Qh4+ {[%emt 0:13:15]} 15. g3 {[%emt 0:01:56]} Qf6 {[%emt 0:00:26]} 16. f4 {[%emt 0:14:42]} Nf5 {[%emt 0:00:58]} 17. fxe5 {[%emt 0:03:33]} Qxe5 {[%emt 0:00:03]} 18. Qd2 {[%emt 0:03:38]} O-O {[%emt 0:07:31]} 19. O-O-O {[%emt 0:01:01]} Qd5 {[%emt 0:00:23]} 20. Rg1 {[%emt 0:04:26]} Qxa2 {[%emt 0:00:16]} 21. Qb4 {[%emt 0:00:58]} Ne3 {[%emt 0:04:53]} 0-1

[Event "84th ESP-ch 2019"]
[Site "Marbella"]
[Date "2019.11.19"]
[Round "4.1"]
[White "Santos Latasa, Jaime"]
[Black "Shirov, Alexei"]
[Result "0-1"]
[ECO "A06"]
[WhiteElo "2581"]
[BlackElo "2666"]
[Annotator "ChessBase"]
[PlyCount "52"]
[EventDate "2019.11.16"]
[EventType "swiss"]
[EventCountry "ESP"]
[SourceTitle "playchess.com"]
[Source "ChessBase"]
[SourceQuality "1"]
[TimeControl "5400+30"]

1. Nf3 {[%emt 0:00:00]} d5 {[%emt 0:00:00]} 2. e3 {[%emt 0:00:00]} Nf6 {[%emt 0:00:14]} 3. c4 {[%emt 0:00:00]} c6 {[%emt 0:00:05]} 4. Nc3 {[%emt 0:00:05]} Nbd7 {[%emt 0:00:20]} 5. Qc2 {[%emt 0:00:21]} e5 {[%emt 0:00:17]} 6. cxd5 {[%emt 0:00:15]} Nxd5 {[%emt 0:00:04]} 7. a3 {[%emt 0:00:08]} Bd6 {[%emt 0:04:15]} 8. Be2 {[%emt 0:01:40]} O-O {[%emt 0:02:18]} 9. O-O {[%emt 0:00:20]} Nxc3 {[%emt 0:06:06]} 10. bxc3 {[%emt 0:05:40]} f5 {[%emt 0:00:36]} 11. d4 {[%emt 0:02:15]} e4 {[%emt 0:00:11]} 12. Nd2 {[%emt 0:00:04]} Nf6 {[%emt 0:03:49]} 13. a4 {[%emt 0:00:53]} Bc7 {[%emt 0:06:48]} 14. Ba3 {[%emt 0:02:09]} Re8 {[%emt 0:00:04]} 15. Rab1 {[%emt 0:04:19]} f4 {[%emt 0:03:22]} 16. exf4 {[%emt 0:02:54]} Bxf4 {[%emt 0:03:58]} 17. Nc4 {[%emt 0:00:54]} Nd5 {[%emt 0:02:55]} 18. g3 {[%emt 0:06:30]} Bh3 {[%emt 0:21:43]} 19. Rfe1 {[%emt 0:01:24]} e3 {[%emt 0:01:10]} 20. Bh5 {[%emt 0:08:15]} Nxc3 {[%emt 0:04:22]} 21. Bxe8 {[%emt 0:12:47]} Nxb1 {[%emt 0:00:52]} 22. Rxb1 {[%emt 0:00:33]} Qd5 {[%emt 0:02:00]} 23. Nxe3 {[%emt 0:07:54]} Bxe3 {[%emt 0:01:18]} 24. fxe3 {[%emt 0:00:17]} Rxe8 {[%emt 0:00:36]} 25. Rxb7 {[%emt 0:00:48]} Qf3 {[%emt 0:01:46]} 26. Qa2+ {[%emt 0:02:43]} Kh8 {[%emt 0:00:30]} 0-1